Cogmind - Beta 14 @@@ ROGUE MODE // 2024.09.23 @ 22:31:22 Player: Spoodle Result: Destroyed by G-67 Veteran with Plasma Rifle Performance ------------- Evolutions (6) 3000 Regions Visited (25) 5000 Robots Destroyed (458) 2290 Value Destroyed (17785) 17785 Prototype IDs (70) 1400 Alien Tech Used (0) 0 Bonus (6074) 6074 TOTAL SCORE: 35549 Bonus ------- High Alert Combat Kills 2608 Follower Combat Kills 1481 Network Hubs Disabled 200 Aligned with FarCom 300 Met Data Miner 300 Met Imprinter 300 Met Zhirov 300 Built Enhanced Grunts 300 Met R17 at Cetus 500 Friendly Fire -215 Cogmind --------- Core Integrity 0/1150 Matter 36/300 Energy 310/310 System Corruption 16% Temperature Cool (39) Movement Walking (330) Ox3 Location -4/Armory Parts ------- > --- POWER (2) -------- Reinforced Fission Core > --- PROPULSION (4) --- High-density Centrium Leg > --- UTILITY (10) ----- Huge Storage Unit Machine Analyzer Experimental Targeting Computer Graphene Brace (fused) > --- WEAPON (3) ------- Light Antimatter Cannon > --- INVENTORY (25) --- Particle Reactor High-density Centrium Leg High-density Centrium Leg Advanced Heat Sink High-capacity Storage Unit Superbattery (1500) Advanced Sensor Array Advanced Terrain Scan Processor Advanced Phase Shifter Advanced Phase Shifter Focal Shield Advanced Hardlight Generator Light Antimatter Cannon Scatter Rocket Array Ragnarok Missile Launcher Peak State ------------ > --- POWER ------------ Quantum Reactor Quantum Reactor > --- PROPULSION ------- Advanced Medium Treads Advanced Medium Treads Centrium Heavy Treads > --- UTILITY ---------- Improved Cryofiber Web Advanced Heat Sink High-capacity Storage Unit Experimental Targeting Computer Centrium Medium Armor Plating Centrium Medium Armor Plating Graphene Brace Advanced Thermal Shield Beam Splitter Drone Bay > --- WEAPON ----------- Phase Cannon Heavy Plasma Cannon Advanced KE Penetrator > --- INVENTORY -------- Quantum Reactor Enhanced Flexi-carbon Leg High-density Centrium Leg High-density Centrium Leg High-density Centrium Leg Centrium Wheel High-density Centrium Wheel Superbattery Advanced Sensor Array Experimental Reaction Control System Centrium Medium Armor Plating EM Disruption Field Hacking Drone Bay Wave Gun Phase Gun Dispersion Rifle Heavy Proton Cannon Neutron Cannon Scatter Rocket Array Ragnarok Missile Launcher [Rating: 148] Favorites ----------- Power Heavy Ion Engine Engine Heavy Ion Engine Power Core Fission Core Reactor Quantum Reactor Propulsion Armored Treads Treads Armored Treads Leg Myomer Leg Wheel High-density Centrium Wheel Hover Unit Cooled Linear Gravjet Flight Unit Improved Diametric Drive Utility High-capacity Storage Unit Device Advanced Heat Sink Storage High-capacity Storage Unit Processor Experimental Targeting Computer Hackware System Shield Protection Hardened Medium Armor Plating Weapon Advanced Beam Rifle Energy Gun Advanced Beam Rifle Energy Cannon Heavy Plasma Cannon Ballistic Gun Advanced KE Penetrator Ballistic Cannon Light Cannon Launcher Mini Grenade Launcher Special Weapon Mining Laser Impact Weapon Great Maul Build | -11 -10 -10 -9 -9 -9 -8 -8 -8 -7 -7 -7 -7 -6 -6 -6 -6 -6 -5 -5 -5 -5 -5 -5 -4 -4 ------- Run | Yrd Mat Min Mat Min Exi Min Mat Sto Fac Low Low Dat Pro Fac Low Low Zio Pro Fac Ext Cet Arc Hub Fac Arm Slots Evolved 12 | . . . 2 . . . 2 . 2 . . . . 2 . . . . 2 . . . . 2 . Power 1 | . . . . . . . . . . . . . . . . . . . 1 . . . . . . Propulsion 2 | . . . 1 . . . . . 1 . . . . . . . . . . . . . . . . Utility 8 | . . . 1 . . . 1 . 1 . . . . 2 . . . . 1 . . . . 2 . Weapon 1 | . . . . . . . 1 . . . . . . . . . . . . . . . . . . Parts Attached 550 | 7 11 . 53 13 . 7 43 24 44 6 11 . 12 67 14 6 6 25 26 27 15 1 27 32 73 Power 27 | 1 1 . 3 . . . 1 . . . 1 . . 2 2 . . 1 1 1 1 . 3 1 8 Engine 10 | 1 1 . 3 . . . 1 . . . 1 . . 2 1 . . . . . . . . . . Core 7 | . . . . . . . . . . . . . . . 1 . . 1 1 1 . . . . 3 Reactor 10 | . . . . . . . . . . . . . . . . . . . . . 1 . 3 1 5 Propulsion 77 | 2 2 . 6 1 . . 6 10 4 . . . 2 7 . . 2 9 1 2 1 . 3 3 16 Treads 55 | . 2 . 6 1 . . 6 8 3 . . . 2 7 . . 2 4 1 2 1 . . 2 8 Leg 13 | 2 . . . . . . . . 1 . . . . . . . . 1 . . . . 1 . 8 Wheel 5 | . . . . . . . . . . . . . . . . . . 2 . . . . 2 1 . Hover 2 | . . . . . . . . 1 . . . . . . . . . 1 . . . . . . . Flight 2 | . . . . . . . . 1 . . . . . . . . . 1 . . . . . . . Utility 224 | 2 1 . 25 10 . 3 16 5 15 4 4 . 2 37 8 4 2 10 12 10 8 . 9 13 24 Device 144 | 1 . . 11 5 . 2 8 3 12 3 4 . 1 29 7 2 2 5 12 5 3 . 5 7 17 Storage 10 | 1 1 . 2 . . . . . . . . . . 2 . . . . . . 1 . . . 3 Processor 8 | . . . . . . . 3 . . 1 . . . . . . . 2 . . . . . . 2 Hackware 2 | . . . . . . . . . . . . . . 1 . . . . . . . . . 1 . Protection 60 | . . . 12 5 . 1 5 2 3 . . . 1 5 1 2 . 3 . 5 4 . 4 5 2 Artifact . | . . . . . . . . . . . . . . . . . . . . . . . . . . Weapon 222 | 2 7 . 19 2 . 4 20 9 25 2 6 . 8 21 4 2 2 5 12 14 5 1 12 15 25 Energy Gun 81 | 2 2 . 2 . . 2 15 6 16 1 3 . 4 12 2 1 1 2 2 . 1 . . 3 4 Energy Cannon 51 | . . . 4 . . . 3 1 7 . 1 . . 4 . . . . 6 6 1 1 5 5 7 Ballistic Gun 27 | . . . . . . . 1 1 . . . . . . . . . 1 3 5 3 . 6 4 3 Ballistic Cannon 19 | . 4 . 9 1 . . . . . . . . . . . . . . . . . . . . 5 Launcher 39 | . . . 1 1 . 1 1 1 2 1 2 . 4 5 2 1 1 2 1 3 . . 1 3 6 Special Weapon 3 | . 1 . 2 . . . . . . . . . . . . . . . . . . . . . . Impact Weapon 2 | . . . 1 . . 1 . . . . . . . . . . . . . . . . . . . Slashing Weapon . | . . . . . . . . . . . . . . . . . . . . . . . . . . Piercing Weapon . | . . . . . . . . . . . . . . . . . . . . . . . . . . Special Melee Weapon . | . . . . . . . . . . . . . . . . . . . . . . . . . . Unidentified Prototypes 33 | . . . 4 . . . 3 4 . 1 . . . 1 . . 2 8 2 . 5 . 1 . 2 Parts Lost 57 | . . . 1 1 . 1 . . . . 1 . 2 1 1 . . 5 1 . . . 4 4 35 Power 12 | . . . 1 . . . . . . . 1 . . . . . . 1 . . . . 1 . 8 Propulsion 9 | . . . . . . . . . . . . . 2 . . . . . 1 . . . . . 6 Utility 23 | . . . . 1 . . . . . . . . . . 1 . . 3 . . . . 1 3 14 Weapon 13 | . . . . . . 1 . . . . . . . 1 . . . 1 . . . . 2 1 7 Highest Loss Streak 10 | . . . 1 1 . 1 . . . . 1 . 1 1 1 . . 2 1 . . . 3 4 10 To Critical Strikes 1 | . . . . . . . . . . . . . 1 . . . . . . . . . . . . Average Slot Usage (%) 97 | . 100 100 98 100 100 100 99 99 99 100 100 100 99 99 100 100 100 98 100 99 99 94 90 89 81 Engine 6 | . 14 14 10 11 11 11 9 9 7 7 7 7 7 6 5 6 6 5 . . . . . . . Core 1 | . . . . . . . . . . . . . . . . . . . 11 11 5 5 2 . 2 Reactor 1 | . . . . . . . . . . . . . . . . . . . . . 4 5 8 9 6 Treads 23 | . 26 28 32 33 33 33 27 27 30 30 30 30 29 25 26 26 26 15 11 11 10 5 5 9 9 Wheel 2 | . . . . . . . . . . . . . . . . . . 10 11 11 11 11 10 5 . Device 19 | . 14 14 6 14 22 21 15 11 15 15 15 15 15 25 32 32 33 23 20 18 20 23 23 26 26 Storage 7 | . 14 14 11 11 11 11 9 9 7 7 7 7 7 6 6 6 6 6 5 5 5 5 5 5 5 Processor 5 | . . . . . . . 8 9 7 7 7 7 7 6 6 6 6 9 7 5 5 5 5 5 9 Protection 6 | . . . 14 7 . . 2 6 6 7 7 7 7 5 . . . 4 11 15 12 11 8 9 4 Energy Gun 11 | . 10 . . . . 11 26 26 19 22 22 23 22 16 12 12 12 8 1 . . . . . 3 Energy Cannon 3 | . . . 1 . . . . . 2 . . . . 2 6 6 6 6 6 5 4 3 6 10 6 Ballistic Gun 1 | . . . . . . . . . . . . . . . . . . 3 8 9 11 12 9 3 1 Ballistic Cannon 4 | . 17 28 20 22 22 4 . . . . . . . . . . . . . . . . . . 2 Peak Build Rating 148 | 7 8 8 17 19 17 22 33 41 51 50 51 51 53 66 69 68 73 86 105 111 137 137 142 148 148 Average Rating 61 | 5 7 8 14 15 16 21 30 38 45 48 50 51 51 61 65 66 68 81 96 103 122 135 131 140 127 On Entrance 57 | . 7 8 8 15 16 17 22 33 39 47 50 51 51 53 66 67 67 69 86 98 105 137 135 125 132 Naked Turns . | . . . . . . . . . . . . . . . . . . . . . . . . . . Heaviest Build 156 | 12 32 32 63 63 57 61 66 65 77 69 73 68 80 87 89 101 83 103 127 125 128 108 126 136 156 Greatest Support 160 | 20 40 40 60 60 60 60 60 69 83 82 82 82 83 88 88 88 101 101 40 40 40 40 40 140 160 Greatest Overweight (x) 6 | . . . 1 1 . 1 1 1 1 . . . . 1 1 1 . 4 3 3 3 2 5 6 3 Average Overweight (x) . | . . . . . . . . . . . . . . . . . . 1 2 2 2 2 2 2 . Largest Inventory Capacity 25 | 8 15 15 20 20 20 20 20 20 20 20 20 20 20 20 20 20 20 20 20 20 20 20 20 20 25 Average Capacity 19 | 7 14 15 19 20 20 20 20 20 20 20 20 20 20 20 20 20 20 20 20 20 20 20 20 20 22 Most Carried 25 | 7 15 15 20 20 20 20 20 20 20 20 20 19 20 20 20 20 20 20 20 20 20 20 20 20 25 Average Carried 19 | 4 12 14 19 19 19 19 19 19 19 19 19 19 19 19 18 20 19 19 19 19 19 20 19 19 21 Final Capacity 25 | 8 15 15 20 20 20 20 20 20 20 20 20 20 20 20 20 20 20 20 20 20 20 20 20 20 25 Final Carried 20 | 7 15 15 20 19 20 20 20 20 20 20 19 19 20 20 20 20 20 20 20 20 20 20 19 20 15 Class Distribution -------------------- 22% | Tank 21% | Scavenger-Tank 17% | Scavenger-Skirmisher 15% | Mutant 8% | Scavenger-Mutant 5% | Skirmisher Dominant Class ---------------- Mutant | -10/Materials Mutant | -10/Mines Mutant | -9/Materials Scavenger-Mutant | -9/Mines Scavenger-Mutant | -9/Exiles Scavenger-Mutant | -8/Mines Scavenger-Skirmisher | -8/Materials Skirmisher | -8/Storage Tank | -7/Factory Tank | -7/Lower Caves Tank | -7/Lower Caves Tank | -7/Data Miner Tank | -6/Proximity Caves Tank | -6/Factory Scavenger-Skirmisher | -6/Lower Caves Scavenger-Skirmisher | -6/Lower Caves Scavenger-Skirmisher | -6/Zion Gunner | -5/Proximity Caves Derelict-Tank | -5/Factory Scavenger-Tank | -5/Extension Scavenger-Tank | -5/Cetus Scavenger-Tank | -5/Archives Scavenger-Tank | -5/Hub_04(d) Scavenger-Tank | -4/Factory Scavenger-Tank | -4/Armory Resources | -11 -10 -10 -9 -9 -9 -8 -8 -8 -7 -7 -7 -7 -6 -6 -6 -6 -6 -5 -5 -5 -5 -5 -5 -4 -4 ----------- Run | Yrd Mat Min Mat Min Exi Min Mat Sto Fac Low Low Dat Pro Fac Low Low Zio Pro Fac Ext Cet Arc Hub Fac Arm Matter Collected 9468 | 270 266 . 931 236 78 109 434 306 490 70 150 . 212 744 324 130 60 341 615 941 238 10 589 672 1252 Remotely 96 | . . . . . . . . . . . . . . . . . . . 96 . . . . . . Salvage Created 17345 | 115 556 . 1003 140 . 137 738 773 1686 22 322 . 562 1672 259 90 . 449 1189 2359 440 35 1378 1702 1718 Parts 865 | 11 30 . 77 17 . 6 44 41 67 5 16 . 26 112 7 2 . 11 53 74 20 6 101 68 71 Haulers Intercepted 19 | . 1 . 3 . . . 3 4 1 . . . . . . . . 1 . 5 . . . 1 . Recyclers Shooed 15 | . 1 . 1 . . . . . 4 . . . . 5 . . . . 2 2 . . . . . Parts Field Recycled . | . . . . . . . . . . . . . . . . . . . . . . . . . . Retrieved Matter . | . . . . . . . . . . . . . . . . . . . . . . . . . . Parts Self-Destructed 69 | . . . . . . . . . . 2 20 . 22 . 13 2 . 10 . . . . . . . Prevented 3 | . . . . . . . . . . . 3 . . . . . . . . . . . . . . Kills | -11 -10 -10 -9 -9 -9 -8 -8 -8 -7 -7 -7 -7 -6 -6 -6 -6 -6 -5 -5 -5 -5 -5 -5 -4 -4 ------- Run | Yrd Mat Min Mat Min Exi Min Mat Sto Fac Low Low Dat Pro Fac Low Low Zio Pro Fac Ext Cet Arc Hub Fac Arm Combat Hostiles Destroyed 326 | . 13 . 26 8 . 3 11 11 28 4 11 . 17 34 9 3 . 7 13 21 5 . 19 29 54 Guns 105 | . 5 . . . . . 6 10 14 . 5 . 8 14 5 . . 1 5 3 3 . 7 4 15 Cannons 78 | . 6 . 23 4 . . 3 . . . . . . 2 . 1 . 1 5 3 1 . 5 11 13 AOE 128 | . 1 . 3 4 . 3 2 1 10 4 5 . 9 17 3 2 . 5 2 13 . . 7 12 25 Classes Destroyed 21 | 1 5 . 4 . . . . 1 3 . . . 1 2 . . . 1 1 . . . . . 2 Worker 25 | . . . 2 2 . 1 1 5 2 . . . . 4 . . . . 1 3 . . 3 1 . Builder 24 | . . . 2 1 . 1 . . 1 . . . . 8 . . . . 3 2 . . 3 3 . Tunneler 6 | 5 . . . . . . . . . . . . . . . . . . . . . . 1 . . Hauler 19 | . 1 . 3 . . . 3 4 1 . . . . . . . . 1 . 5 . . . 1 . Recycler 25 | . 1 . 1 . . 1 2 . 5 . . . . 3 . . . . 3 7 . . 1 1 . Mechanic 3 | . . . . . . . . . . . . . . . . . . . 1 . . . . . 2 Operator 7 | . . . . . . . . 1 . . . . . 2 . . . . . . . . 2 . 2 Watcher 25 | . 1 . 2 . . . 1 . 6 . . . . 1 . . . . . 2 2 . 2 5 3 Swarmer 93 | . 3 . 11 4 . . 4 1 10 4 7 . 4 12 1 . . . 1 5 . . . 4 22 Saboteur 3 | . . . . . . . . . . . . . . . . . . . . . . . . . 3 Grunt 86 | . 10 . 6 4 . 3 1 4 8 . 3 . 9 10 7 . . . 2 8 . . 3 5 3 Brawler 4 | . . . 1 . . . . . 1 . . . . 1 . . . . 1 . . . . . . Duelist 10 | . . . . . . . . . 1 . . . 2 2 . . . . 2 . . . . 1 2 Protector 3 | . . . . . . . . . . . . . . 1 . . . 1 . . . . 1 . . Sentry 46 | . . . 8 . . . 6 6 4 . . . . 2 . 1 . 1 . 4 . . 3 7 4 Demolisher 3 | . . . . . . . . . . . . . . . . . . . . . . . . . 3 Specialist 11 | . . . . . . . . . . . . . . . . . . 1 . . . . 4 . 6 Hunter 19 | . . . . . . . . . 3 . . . . . . 2 . 3 1 2 . . . 6 2 Programmer 34 | . . . . . . . . . 1 . 1 . 1 5 1 . . 1 6 . . . 4 6 8 Heavy 2 | . . . . . . . . . . . . . . 1 . . . . . . . . 1 . . Behemoth 3 | . . . . . . . . . . . . . 1 . . . . . . 1 . . . . 1 Cetus Guard 5 | . . . . . . . . . . . . . . . . . . . . . 5 . . . . Lightning 3 | . . . . . . . . . . . . . . . . . . . . . . . 3 . . Thug 1 | . . . . . . . . . . . . . . . . . . . . 1 . . . . . Best Kill Streak 28 | 4 3 . 6 4 . 3 4 3 7 4 4 . 4 6 4 2 . 6 5 25 4 . 13 28 12 Combat Bots Only 17 | . 3 . 5 4 . 3 3 2 6 4 4 . 4 5 4 2 . 5 3 12 3 . 6 17 11 Max Kills in Single Turn 9 | 1 2 . 2 4 . 3 2 2 3 2 3 . 2 5 2 1 . 3 2 7 2 . 9 6 5 Gunslinging 1 | . . . . . . . . . . . . . 1 . . . . . . . . . . . 1 Exploded 7 | . 1 . 2 4 . 3 2 1 2 2 3 . 2 3 2 1 . 3 1 7 . . 2 5 4 Melee . | . . . . . . . . . . . . . . . . . . . . . . . . . . Uniques/NPCs Destroyed . | . . . . . . . . . . . . . . . . . . . . . . . . . . Combat | -11 -10 -10 -9 -9 -9 -8 -8 -8 -7 -7 -7 -7 -6 -6 -6 -6 -6 -5 -5 -5 -5 -5 -5 -4 -4 -------- Run | Yrd Mat Min Mat Min Exi Min Mat Sto Fac Low Low Dat Pro Fac Low Low Zio Pro Fac Ext Cet Arc Hub Fac Arm Hostile Shots Fired 1948 | . 30 . 134 20 . 14 21 20 185 9 34 . 64 162 50 36 . 88 50 58 18 . 139 214 602 Missed 641 | . 11 . 36 7 . 1 8 5 76 3 10 . 24 64 20 9 . 31 10 14 7 . 45 74 186 Damage Taken 20722 | . 235 . 1051 203 . 215 145 283 870 62 281 . 652 970 399 270 . 940 685 644 169 500 1609 2185 8354 Core 1997 | . 50 . 141 . . 32 39 . 14 11 11 . 15 116 . 8 . 87 80 66 16 48 97 255 911 Absorbed by Shields 1854 | . . . . . . . . 4 441 24 98 . 241 379 118 69 . 98 . 292 90 . . . . Reduced by Siege Mode 133 | . . . . . . . . . . . . . . . . . . . . . . . . . 133 Redirected to Shielding 195 | . . . 70 14 . . . . . . . . . . . . . . . . . . . . 111 Ignored by Resistances 3013 | . . . . . . . . . . . . . 126 49 . 97 . 104 201 252 41 . 514 456 1173 Regen/Repaired (Parts) 302 | . . . . . . . . . . . . . . 302 . . . . . . . . . . . Core Remaining (%) 80 | 100 . 80 . . . 56 . 92 . . . . 92 . . . . 75 . . . . 69 . . Volleys Fired 893 | 13 55 . 80 13 . 6 35 35 87 3 15 . 32 98 20 8 . 20 46 95 11 2 44 52 123 Largest 3 | 1 2 . 2 2 . 2 3 3 3 1 3 . 3 3 3 3 . 3 3 3 3 1 3 3 3 Hottest 270 | 40 100 . 168 70 . 70 183 183 246 30 178 . 178 235 235 235 . 235 210 180 153 85 265 270 270 Shots Fired 1893 | 13 100 . 145 25 . 9 94 82 187 3 37 . 67 201 46 10 . 36 110 197 32 2 111 136 250 Gun 1073 | 13 54 . . . . . 79 81 151 . 33 . 54 148 26 2 . 21 74 106 22 . 65 37 107 Cannon 722 | . 44 . 139 24 . 6 14 . 30 . 2 . . 39 15 3 . 11 34 85 10 2 41 92 131 Launcher 92 | . . . 2 1 . 3 1 1 6 3 2 . 13 14 5 5 . 4 2 6 . . 5 7 12 Special 6 | . 2 . 4 . . . . . . . . . . . . . . . . . . . . . . Kinetic 548 | . 44 . 124 24 . 6 . . . . . . . . . . . 9 68 106 22 . 65 20 60 Thermal 1179 | 13 14 . 19 . . . 93 81 181 . 35 . 54 187 41 5 . 23 40 73 10 2 41 97 170 Explosive 92 | . . . 2 1 . 3 1 1 6 3 2 . 13 14 5 5 . 4 2 6 . . 5 7 12 Electromagnetic 74 | . 42 . . . . . . . . . . . . . . . . . . 12 . . . 12 8 Robot Hit Streak 44 | 2 13 . 7 9 . 4 8 11 20 . 26 . 41 13 18 10 . 10 19 44 13 15 18 10 23 Robot Miss Streak 6 | 1 3 . 5 4 . 2 3 4 4 . 2 . 1 3 1 2 . 1 3 2 3 . 2 6 4 Penetration Max 1 | . . . . . . . . . . . . . . . . . . . 1 1 1 . 1 1 . Secondary Targets 18 | . 1 . . . . . . . 3 . 3 . 3 . . . . . 1 . . . 2 . 5 Max Gunslinging Chain 1 | . 1 . . . . . . . 1 . 1 . 1 . . . . . 1 . . . 1 . 1 Shots Hit Robots 1202 | 8 52 . 68 15 . 8 50 49 125 . 28 . 57 108 28 5 . 26 78 140 24 2 71 91 169 Core Hits 868 | 5 19 2 35 10 . 8 24 23 72 7 16 . 47 113 26 6 . 44 34 72 13 2 51 135 104 Critical Kills 24 | . . . . . . . . . . . . . . 1 . . . . 3 1 3 . 4 5 7 Critical Parts Destroyed 20 | . . . . . . . . . . . . . . . . . . . . 1 2 . 3 3 11 Critical Strikes 89 | . 1 . 7 . . 1 4 3 14 . 3 . 4 6 1 . . . 4 3 5 . 7 8 18 Burn 35 | . . . . . . . 4 3 14 . 3 . 4 5 1 . . . 1 . . . . . . Meltdown 7 | . . . . . . . . . . . . . . 1 . . . . 1 . 1 . 1 1 2 Destroy 37 | . . . . . . . . . . . . . . . . . . . 2 2 4 . 6 7 16 Blast 8 | . . . 7 . . 1 . . . . . . . . . . . . . . . . . . . Corrupt 2 | . 1 . . . . . . . . . . . . . . . . . . 1 . . . . . Melee Attacks 4 | . . . 1 . . 3 . . . . . . . . . . . . . . . . . . . Impact 4 | . . . 1 . . 3 . . . . . . . . . . . . . . . . . . . Slashing . | . . . . . . . . . . . . . . . . . . . . . . . . . . Piercing . | . . . . . . . . . . . . . . . . . . . . . . . . . . Sneak Attacks 2 | . . . . . . 2 . . . . . . . . . . . . . . . . . . . Combat Hostiles . | . . . . . . . . . . . . . . . . . . . . . . . . . . Follow-up Attacks . | . . . . . . . . . . . . . . . . . . . . . . . . . . Damage Inflicted 54752 | 85 877 18 1686 477 . 675 1167 1296 4057 399 908 . 2493 5235 1393 463 . 1721 2676 7122 852 62 4683 5686 10721 Guns 18083 | 84 433 . . . . . 789 1074 2372 . 585 . 988 2173 537 37 . 358 1350 2363 581 . 1416 736 2207 Cannons 12472 | . 339 . 1348 269 . 58 231 . 417 . . . . 287 170 32 . 188 723 1970 271 62 837 2183 3087 Explosions 23557 | . 80 . 272 179 . 361 105 164 1220 399 323 . 1505 2748 686 394 . 1175 603 2760 . . 2430 2767 5386 Melee 242 | . . . . . . 242 . . . . . . . . . . . . . . . . . . . Ramming 398 | 1 25 18 66 29 . 14 42 58 48 . . . . 27 . . . . . 29 . . . . 41 Kinetic 9521 | . 339 . 1184 269 . 58 . . . . . . . . . . . 119 1198 2363 581 . 1416 421 1573 Thermal 20750 | 84 156 . 164 . . . 1020 1074 2789 . 585 . 988 3186 707 69 . 427 875 1518 271 62 997 2218 3560 Explosive 21406 | . . . 272 179 . 361 105 164 1220 399 323 . 1505 2022 686 394 . 1175 603 2760 . . 1170 2767 5301 Electromagnetic 2435 | . 357 . . . . . . . . . . . . . . . . . . 452 . . 1100 280 246 Impact 242 | . . . . . . 242 . . . . . . . . . . . . . . . . . . . Slashing . | . . . . . . . . . . . . . . . . . . . . . . . . . . Piercing . | . . . . . . . . . . . . . . . . . . . . . . . . . . Highest Corruption 16 | . . . . . . . . 2 . . . . . 1 1 . . . 6 6 . . 12 3 16 Average Corruption 3 | . . . . . . . . 1 . . . . . 1 1 . . . 3 5 . . 10 2 5 Corruption Purged 7 | . . . . . . . . . . . . . . . 1 . . . . 6 . . . . . Corruption Blocked . | . . . . . . . . . . . . . . . . . . . . . . . . . . Effects 133 | . . . . . . . . 23 . . . . . 13 1 . . . 11 15 . . 16 4 50 Message Errors 28 | . . . . . . . . 2 . . . . . 5 . . . . . 5 . . 3 1 12 Matter Fused 30 | . . . . . . . . 7 . . . . . 4 . . . . 3 4 . . 1 1 10 Heat Flow Errors 17 | . . . . . . . . 2 . . . . . 1 . . . . 1 3 . . 3 1 6 Energy Discharges 17 | . . . . . . . . 4 . . . . . . 1 . . . 2 2 . . 1 . 7 Parts Rejected 3 | . . . . . . . . . . . . . . . . . . . . . . . 1 . 2 Parts Fused 2 | . . . . . . . . . . . . . . . . . . . . . . . 2 . . Data Loss (minor) 15 | . . . . . . . . 2 . . . . . 2 . . . . 4 1 . . 2 . 4 Data Loss (major) 7 | . . . . . . . . 1 . . . . . 1 . . . . 1 . . . 1 . 3 Misfires 2 | . . . . . . . . . . . . . . . . . . . . . . . 1 . 1 Alerts 5 | . . . . . . . . 4 . . . . . . . . . . . . . . . . 1 Misdirections 1 | . . . . . . . . . . . . . . . . . . . . . . . . . 1 Weapon Failures 6 | . . . . . . . . 1 . . . . . . . . . . . . . . 1 1 3 Overload Shots 7 | . . . . . . . . . 7 . . . . . . . . . . . . . . . . Effects 1 | . . . . . . . . . 1 . . . . . . . . . . . . . . . . Short Circuit 1 | . . . . . . . . . 1 . . . . . . . . . . . . . . . . Overflow Damage 1364 | . . . 75 . . 187 . . 56 . 11 . 15 38 3 41 . 14 21 190 . . 165 62 486 Projectiles 302 | . . . 28 . . . . . 3 . . . . . 1 . . . 3 32 . . 42 56 137 Explosions 875 | . . . 47 . . . . . 53 . 11 . 15 38 2 41 . 14 18 158 . . 123 6 349 Melee 187 | . . . . . . 187 . . . . . . . . . . . . . . . . . . . Knockbacks 16 | . . . 7 . . 1 . 1 . . . . . . . . . . . . . . . . 7 Impact 3 | . . . 1 . . 1 . 1 . . . . . . . . . . . . . . . . . Kinetic 12 | . . . 5 . . . . . . . . . . . . . . . . . . . . . 7 Secondary 1 | . . . 1 . . . . . . . . . . . . . . . . . . . . . . Self-Inflicted Damage 461 | . . . . 33 . . . 37 43 . . . 99 5 . . . 109 . 14 . . 93 . 28 Shots 15 | . . . . 1 . . . 1 2 . . . 3 1 . . . 5 . . . . 1 . 1 Rammed 51 | . 6 3 8 1 . 2 5 6 4 . . . . 6 . . . . . 2 . . . . 8 Targets Rammed 63 | 1 6 3 9 4 . 3 6 8 6 . . . . 7 . . . . . 2 . . . . 8 Kicked 1 | 1 . . . . . . . . . . . . . . . . . . . . . . . . . Crushed 11 | . . . 1 3 . 1 1 2 2 . . . . 1 . . . . . . . . . . . Highest Temperature 375 | . 171 . 168 144 . 146 177 290 258 . 197 . 198 221 18 . . 252 321 228 . . 102 162 375 Average Temperature 79 | . 43 . 38 61 . 80 55 71 85 . 108 . 109 70 15 . . 128 152 84 . . 53 72 100 Received Heat Transfer 3540 | . 99 . 183 102 . 117 27 114 217 . 88 . 153 203 112 8 . 190 18 128 8 . 390 255 1128 Effects 6 | . . . . . . . . . . . . . . . . . . . 1 1 . . . . 4 Shutdowns 1 | . . . . . . . . . . . . . . . . . . . 1 . . . . . . Energy Bleed 2 | . . . . . . . . . . . . . . . . . . . . 1 . . . . 1 Interference 3 | . . . . . . . . . . . . . . . . . . . . . . . . . 3 Siege Activations 3 | . . . . . . . . . . . . . . . . . . . . . . . . . 3 Total Turns 38 | . . . . . . . . . . . . . . . . . . . . . . . . . 38 Longest Duration 17 | . . . . . . . . . . . . . . . . . . . . . . . . . 17 Robots Corrupted 5 | . 1 . . . . 1 . . . . . . . . . . . . . 2 . . 1 . . Combat Hostiles 2 | . 1 . . . . . . . . . . . . . . . . . . 1 . . . . . Parts Fried 16 | . . . . . . 2 . . . . . . . . . . . . . 3 2 . 7 1 1 Impact Corruptions 5 | . . . . . . 5 . . . . . . . . . . . . . . . . . . . Robots Melted 17 | . . . . . . . . 1 5 . 1 . . 1 1 . . . 1 1 1 . 1 2 2 Combat Hostiles 13 | . . . . . . . . . 4 . 1 . . 1 1 . . . 1 1 1 . . 2 1 Parts Melted 95 | . . . 1 . . . 4 4 24 . 3 . 1 20 7 . . 3 3 5 3 . . 8 9 Heat Transferred 32626 | 200 275 . 296 . . . 2183 2109 6306 . 1258 . 2109 5421 1295 112 . 684 1296 1927 333 74 683 2365 3700 Parts Sabotaged . | . . . . . . . . . . . . . . . . . . . . . . . . . . Parts Stolen . | . . . . . . . . . . . . . . . . . . . . . . . . . . Parts Stripped . | . . . . . . . . . . . . . . . . . . . . . . . . . . Power Chain Reactions 6 | . 2 . . . . . . . . . . . . . . . . . . . . . 3 . 1 Alert | -11 -10 -10 -9 -9 -9 -8 -8 -8 -7 -7 -7 -7 -6 -6 -6 -6 -6 -5 -5 -5 -5 -5 -5 -4 -4 ------- Run | Yrd Mat Min Mat Min Exi Min Mat Sto Fac Low Low Dat Pro Fac Low Low Zio Pro Fac Ext Cet Arc Hub Fac Arm Peak Influence 1125 | 25 314 90 591 403 . 101 252 358 720 . . . . 832 . . . . 289 848 427 472 865 1125 1050 Initial 477 | . 16 90 . 208 . . . 37 84 . . . . 56 . . . . 12 83 427 120 158 365 477 Average 324 | 12 147 54 298 201 . 37 104 197 432 . . . . 451 . . . . 122 403 314 232 478 564 645 Maximum Alert Level 4 | . 1 . 2 2 . . 1 1 3 . . . . 3 . . . . 1 3 2 2 3 4 3 Low Security (%) 40 | 100 68 100 24 25 . 100 98 53 12 . . . . 27 . . . . 80 45 13 64 25 . . Level 1 26 | . 31 . 49 74 . . 1 46 21 . . . . 8 . . . . 19 12 81 4 26 26 12 Level 2 20 | . . . 26 . . . . . 59 . . . . 39 . . . . . 15 5 31 10 45 46 Level 3 12 | . . . . . . . . . 5 . . . . 24 . . . . . 26 . . 37 26 40 Level 4 . | . . . . . . . . . . . . . . . . . . . . . . . . 1 . Level 5 . | . . . . . . . . . . . . . . . . . . . . . . . . . . High Security . | . . . . . . . . . . . . . . . . . . . . . . . . . . Max Security . | . . . . . . . . . . . . . . . . . . . . . . . . . . Squads Dispatched 55 | . 3 . 3 . . . . 3 10 . . . . 13 . . . . 1 3 . . 4 5 10 Investigation 13 | . 2 . . . . . . 2 4 . . . . . . . . . . 1 . . . 2 2 Extermination 12 | . . . . . . . . . 1 . . . . 3 . . . . 1 . . . 2 1 4 Reinforcement 16 | . 1 . 3 . . . . 1 . . . . . 6 . . . . . 2 . . 2 . 1 Assault 10 | . . . . . . . . . 2 . . . . 3 . . . . . . . . . 2 3 Garrison 4 | . . . . . . . . . 3 . . . . 1 . . . . . . . . . . . Intercept . | . . . . . . . . . . . . . . . . . . . . . . . . . . Searches Triggered . | . . . . . . . . . . . . . . . . . . . . . . . . . . Data Miner Redirects 7 | . . . . . . . . . . . . . . 2 . . . . . 1 . . . 3 1 Construction Impeded 5 | . . . . . . . . . . . . . . 4 . . . . . 1 . . . . . Haulers Reinforced . | . . . . . . . . . . . . . . . . . . . . . . . . . . Active Scanning Responses . | . . . . . . . . . . . . . . . . . . . . . . . . . . Cargo Convoy Interrupts . | . . . . . . . . . . . . . . . . . . . . . . . . . . Stealth | -11 -10 -10 -9 -9 -9 -8 -8 -8 -7 -7 -7 -7 -6 -6 -6 -6 -6 -5 -5 -5 -5 -5 -5 -4 -4 --------- Run | Yrd Mat Min Mat Min Exi Min Mat Sto Fac Low Low Dat Pro Fac Low Low Zio Pro Fac Ext Cet Arc Hub Fac Arm Distress Signals 22 | . . . 2 . . . 3 4 2 . . . . 2 . . . . 2 . 2 1 1 2 1 Communications Jammed 213 | . . . . . . . . . . . . . . 88 . . . . 14 107 . . 4 . . Distress Signals 207 | . . . . . . . . . . . . . . 85 . . . . 14 107 . . 1 . . Times Spotted 460 | . 23 . 41 9 . 3 23 23 37 4 12 . 17 53 11 3 . 9 20 35 8 3 22 37 67 Peak Tracking Total 12 | . 3 . 6 4 . 3 5 4 4 4 4 . 4 6 4 2 . 7 5 9 5 11 5 12 11 Tactical Retreats 13 | . 1 . 4 1 . . 1 . 1 . 1 . . 1 . . . . . . . . 2 . 1 Traps | -11 -10 -10 -9 -9 -9 -8 -8 -8 -7 -7 -7 -7 -6 -6 -6 -6 -6 -5 -5 -5 -5 -5 -5 -4 -4 ------- Run | Yrd Mat Min Mat Min Exi Min Mat Sto Fac Low Low Dat Pro Fac Low Low Zio Pro Fac Ext Cet Arc Hub Fac Arm Traps Triggered 12 | . 1 . 1 . . . . 2 . . . . . . . . . . . 2 . . 3 2 1 Indirectly . | . . . . . . . . . . . . . . . . . . . . . . . . . . Trap Hack Attempts . | . . . . . . . . . . . . . . . . . . . . . . . . . . Triggered . | . . . . . . . . . . . . . . . . . . . . . . . . . . Disarmed . | . . . . . . . . . . . . . . . . . . . . . . . . . . Reprogrammed . | . . . . . . . . . . . . . . . . . . . . . . . . . . Reused . | . . . . . . . . . . . . . . . . . . . . . . . . . . Traps Extracted . | . . . . . . . . . . . . . . . . . . . . . . . . . . Installed . | . . . . . . . . . . . . . . . . . . . . . . . . . . Triggered . | . . . . . . . . . . . . . . . . . . . . . . . . . . Machines | -11 -10 -10 -9 -9 -9 -8 -8 -8 -7 -7 -7 -7 -6 -6 -6 -6 -6 -5 -5 -5 -5 -5 -5 -4 -4 ---------- Run | Yrd Mat Min Mat Min Exi Min Mat Sto Fac Low Low Dat Pro Fac Low Low Zio Pro Fac Ext Cet Arc Hub Fac Arm Machines Disabled 53 | . 3 . 1 . . . 1 2 4 . . . . 10 . . . . 2 4 . 2 10 5 9 Max in Single Turn 6 | . 2 . 1 . . . 1 1 1 . . . . 5 . . . . 1 1 . . 6 3 1 Garrison Access 2 | . . . . . . . . 1 1 . . . . . . . . . . . . . . . . Network Hub 1 | . . . . . . . . . . . . . . . . . . . . . . . 1 . . Machines Repaired . | . . . . . . . . . . . . . . . . . . . . . . . . . . Machines Dismantled . | . . . . . . . . . . . . . . . . . . . . . . . . . . Machines Sabotaged . | . . . . . . . . . . . . . . . . . . . . . . . . . . Overloaded Fab Kills . | . . . . . . . . . . . . . . . . . . . . . . . . . . Hacking | -11 -10 -10 -9 -9 -9 -8 -8 -8 -7 -7 -7 -7 -6 -6 -6 -6 -6 -5 -5 -5 -5 -5 -5 -4 -4 --------- Run | Yrd Mat Min Mat Min Exi Min Mat Sto Fac Low Low Dat Pro Fac Low Low Zio Pro Fac Ext Cet Arc Hub Fac Arm Machines Accessed 97 | . 8 . 9 . 2 . 7 16 13 1 . 3 . 15 . 1 . . 9 3 . . 5 3 2 Terminals 59 | . 6 . 7 . . . 6 13 5 . . . . 8 . . . . 4 3 . . 5 2 . Fabricators 7 | . . . . . . . . . 3 . . . . 1 . . . . 2 . . . . . 1 Repair Stations 10 | . . . 1 . . . 1 . 2 . . . . 4 . . . . 2 . . . . . . Recycling Units 10 | . 2 . . . . . . 2 2 . . . . 2 . . . . 1 . . . . . 1 Scanalyzers 1 | . . . 1 . . . . . . . . . . . . . . . . . . . . . . Garrison Access 3 | . . . . . . . . 1 1 . . . . . . . . . . . . . . 1 . Total Hacks 264 | . 20 . 36 . 2 . 23 31 30 1 . 25 . 34 . 1 . . 14 8 . . 14 12 13 Successful 131 | . 9 . 22 . 2 . 13 18 10 1 . 25 . 19 . 1 . . 4 2 . . 3 1 1 Failed 131 | . 10 . 14 . . . 9 13 20 . . . . 15 . . . . 10 6 . . 11 11 12 Catastrophic 32 | . 3 . 1 . . . 1 2 4 . . . . 6 . . . . 2 2 . . 4 4 3 Database Lockouts 2 | . 1 . . . . . 1 . . . . . . . . . . . . . . . . . . Manual 130 | . 14 . 19 . 1 . 18 18 19 . . . . 18 . . . . 11 5 1 . 6 . . Terminals 164 | . 18 . 29 . . . 22 27 8 . . . . 19 . . . . 5 8 . . 14 8 6 Fabricators 17 | . . . . . . . . . 6 . . . . 3 . . . . 5 . . . . . 3 Repair Stations 19 | . . . 2 . . . 1 . 6 . . . . 8 . . . . 2 . . . . . . Recycling Units 22 | . 2 . . . . . . 2 8 . . . . 4 . . . . 2 . . . . . 4 Scanalyzers 5 | . . . 5 . . . . . . . . . . . . . . . . . . . . . . Garrison Access 8 | . . . . . . . . 2 2 . . . . . . . . . . . . . . 4 . Terminal Hacks 64 | . 4 . 7 . 2 . 6 9 . 1 . 25 . 4 . 1 . . . 1 . . 2 1 1 Record 9 | . . . . . 1 . . . . . . 6 . . . 1 . . . . . . . . 1 Part Schematic 14 | . . . . . . . 1 1 . . . 12 . . . . . . . . . . . . . Robot Schematic 4 | . . . . . . . . . . . . 4 . . . . . . . . . . . . . Robot Analysis 3 | . 1 . 1 . . . 1 . . . . . . . . . . . . . . . . . . Prototype ID Bank 9 | . . . 2 . . . 3 1 . . . 3 . . . . . . . . . . . . . Open Door 6 | . . . . . . . . 5 . 1 . . . . . . . . . . . . . . . Branch Access Points 2 | . . . . . . . . . . . . . . 1 . . . . . . . . . 1 . Alert Level 4 | . 1 . . . . . 1 . . . . . . 1 . . . . . . . . 1 . . Unreport Threat 2 | . . . . . . . . 1 . . . . . . . . . . . . . . 1 . . Locate Traps 7 | . 2 . 2 . . . . 1 . . . . . 1 . . . . . 1 . . . . . Patrol Status 1 | . . . 1 . . . . . . . . . . . . . . . . . . . . . . Zone Layout 2 | . . . 1 . . . . . . . . . . 1 . . . . . . . . . . . Derelict Proto ID Bank 1 | . . . . . 1 . . . . . . . . . . . . . . . . . . . . Fabricator Hacks 2 | . . . . . . . . . . . . . . 1 . . . . 1 . . . . . . Network Status 2 | . . . . . . . . . . . . . . 1 . . . . 1 . . . . . . Repair Station Hacks 8 | . . . 1 . . . . . 2 . . . . 5 . . . . . . . . . . . Scan Component 6 | . . . 1 . . . . . 2 . . . . 3 . . . . . . . . . . . Repair 2 | . . . . . . . . . . . . . . 2 . . . . . . . . . . . Recycling Unit Hacks 4 | . . . . . . . . . 2 . . . . 2 . . . . . . . . . . . Report Inventory 1 | . . . . . . . . . . . . . . 1 . . . . . . . . . . . Retrieve Matter 1 | . . . . . . . . . . . . . . 1 . . . . . . . . . . . Retrieve Components 2 | . . . . . . . . . 2 . . . . . . . . . . . . . . . . Scanalyzer 5 | . . . 5 . . . . . . . . . . . . . . . . . . . . . . Insert Component 2 | . . . 2 . . . . . . . . . . . . . . . . . . . . . . Analyze 3 | . . . 3 . . . . . . . . . . . . . . . . . . . . . . Garrison Access Hacks 2 | . . . . . . . . 1 1 . . . . . . . . . . . . . . . . Seal Access 2 | . . . . . . . . 1 1 . . . . . . . . . . . . . . . . Unauthorized Hacks 46 | . 5 . 9 . . . 7 8 5 . . . . 7 . . . . 3 1 . . 1 . . Terminals 35 | . 3 . 9 . . . 7 6 3 . . . . 5 . . . . . 1 . . 1 . . Assimilate 1 | . . . . . . . . . 1 . . . . . . . . . . . . . . . . Botnet 10 | . 2 . 2 . . . 1 1 1 . . . . 1 . . . . . 1 . . 1 . . Operators 2 | . . . 1 . . . 1 . . . . . . . . . . . . . . . . . . Skim 22 | . 1 . 6 . . . 5 5 1 . . . . 4 . . . . . . . . . . . Fabricators 3 | . . . . . . . . . 1 . . . . 1 . . . . 1 . . . . . . Report 1 | . . . . . . . . . . . . . . . . . . . 1 . . . . . . Liberate 1 | . . . . . . . . . . . . . . 1 . . . . . . . . . . . Recompile 1 | . . . . . . . . . 1 . . . . . . . . . . . . . . . . Repair Stations 1 | . . . . . . . . . . . . . . . . . . . 1 . . . . . . Mechanics 1 | . . . . . . . . . . . . . . . . . . . 1 . . . . . . Recycling Units 7 | . 2 . . . . . . 2 1 . . . . 1 . . . . 1 . . . . . . Recyclers 3 | . . . . . . . . . 1 . . . . 1 . . . . 1 . . . . . . Tunnel 4 | . 2 . . . . . . 2 . . . . . . . . . . . . . . . . . Scanalyzers . | . . . . . . . . . . . . . . . . . . . . . . . . . . Garrison Access . | . . . . . . . . . . . . . . . . . . . . . . . . . . Data Cores Recovered 3 | . . . . . . . . 1 . . . . . . . . . . . . . . 1 . 1 Used . | . . . . . . . . . . . . . . . . . . . . . . . . . . Hacking Detections 78 | . 6 . 9 . . . 6 10 12 . . . . 12 . . . . 9 3 . . 5 3 3 Full Trace Events 7 | . 1 . . . . . . . 3 . . . . . . . . . . . . . . 2 1 Feedback Events . | . . . . . . . . . . . . . . . . . . . . . . . . . . Feedback Blocked . | . . . . . . . . . . . . . . . . . . . . . . . . . . Robot Schematics Acquired 4 | . . . . . . . . . . . . 4 . . . . . . . . . . . . . Robots Built . | . . . . . . . . . . . . . . . . . . . . . . . . . . Authchips . | . . . . . . . . . . . . . . . . . . . . . . . . . . Time . | . . . . . . . . . . . . . . . . . . . . . . . . . . Total Robot Build Rating . | . . . . . . . . . . . . . . . . . . . . . . . . . . Part Schematics Acquired 16 | . . . 2 . . . 1 1 . . . 12 . . . . . . . . . . . . . Parts Built . | . . . . . . . . . . . . . . . . . . . . . . . . . . Authchips . | . . . . . . . . . . . . . . . . . . . . . . . . . . Time . | . . . . . . . . . . . . . . . . . . . . . . . . . . Total Part Build Rating . | . . . . . . . . . . . . . . . . . . . . . . . . . . Parts Repaired 2 | . . . . . . . . . . . . . . 2 . . . . . . . . . . . Time 60 | . . . . . . . . . . . . . . 60 . . . . . . . . . . . Parts Recycled . | . . . . . . . . . . . . . . . . . . . . . . . . . . Recycled Matter . | . . . . . . . . . . . . . . . . . . . . . . . . . . Retrieved Matter . | . . . . . . . . . . . . . . . . . . . . . . . . . . Retrieved Components 13 | . . . . . . . . . 13 . . . . . . . . . . . . . . . . Parts Scanalyzed 2 | . . . 2 . . . . . . . . . . . . . . . . . . . . . . Part Schematics Acquired 2 | . . . 2 . . . . . . . . . . . . . . . . . . . . . . Parts Damaged . | . . . . . . . . . . . . . . . . . . . . . . . . . . Bothacking | -11 -10 -10 -9 -9 -9 -8 -8 -8 -7 -7 -7 -7 -6 -6 -6 -6 -6 -5 -5 -5 -5 -5 -5 -4 -4 ------------ Run | Yrd Mat Min Mat Min Exi Min Mat Sto Fac Low Low Dat Pro Fac Low Low Zio Pro Fac Ext Cet Arc Hub Fac Arm Used RIF Installer . | . . . . . . . . . . . . . . . . . . . . . . . . . . Robots Hacked . | . . . . . . . . . . . . . . . . . . . . . . . . . . Non-combat . | . . . . . . . . . . . . . . . . . . . . . . . . . . Combat . | . . . . . . . . . . . . . . . . . . . . . . . . . . Robot Hacks Applied . | . . . . . . . . . . . . . . . . . . . . . . . . . . Relay Couplers Released . | . . . . . . . . . . . . . . . . . . . . . . . . . . Fabnet Peak Effective % . | . . . . . . . . . . . . . . . . . . . . . . . . . . Robots Rewired 11 | . . . . . . . . . . . . . . . . . . . 1 10 . . . . . Allies Hacked . | . . . . . . . . . . . . . . . . . . . . . . . . . . Hacks Repelled . | . . . . . . . . . . . . . . . . . . . . . . . . . . Allies | -11 -10 -10 -9 -9 -9 -8 -8 -8 -7 -7 -7 -7 -6 -6 -6 -6 -6 -5 -5 -5 -5 -5 -5 -4 -4 -------- Run | Yrd Mat Min Mat Min Exi Min Mat Sto Fac Low Low Dat Pro Fac Low Low Zio Pro Fac Ext Cet Arc Hub Fac Arm Total Allies 42 | . . . . . . . . 10 1 . . . . . . . . . 1 25 5 . . . . Largest Group 11 | . . . . . . . . 10 1 . . . . . . . . . 1 11 10 6 . . . Highest-Rated Group 642 | . . . . . . . . 173 26 . . . . . . . . . 49 428 642 501 . . . Highest-Rated Ally 159 | . . . . . . . . 29 26 . . . . . . . . . 49 159 152 96 . . . Total Orders 69 | . . . . . . . . . 6 . . . . 11 . . . . 22 . 10 . . 13 7 STAY 17 | . . . . . . . . . 1 . . . . . . . . . 6 . 7 . . 3 . FOLLOW 3 | . . . . . . . . . . . . . . . . . . . . . 3 . . . . EXPLORE 24 | . . . . . . . . . 3 . . . . 5 . . . . 10 . . . . 6 . RETURN 25 | . . . . . . . . . 2 . . . . 6 . . . . 6 . . . . 4 7 Ally Attacks 278 | . . . . . . . . 78 . . . . . . . . . . 4 121 37 38 . . . Total Damage 5955 | . . . . . . . . 911 . . . . . . . . . . 148 2493 817 1586 . . . Kills 49 | . . . . . . . . 13 . . . . . . . . . . 2 22 2 10 . . . Allies Corrupted . | . . . . . . . . . . . . . . . . . . . . . . . . . . Allies Melted . | . . . . . . . . . . . . . . . . . . . . . . . . . . Intel | -11 -10 -10 -9 -9 -9 -8 -8 -8 -7 -7 -7 -7 -6 -6 -6 -6 -6 -5 -5 -5 -5 -5 -5 -4 -4 ------- Run | Yrd Mat Min Mat Min Exi Min Mat Sto Fac Low Low Dat Pro Fac Low Low Zio Pro Fac Ext Cet Arc Hub Fac Arm Robot Analysis Total 3 | . 1 . 1 . . . 1 . . . . . . . . . . . . . . . . . . Derelict Logs Recovered 9 | . . 1 . 1 . . . . . 1 1 . 2 . 1 . 1 1 . . . . . . . Drone Launches 27 | . . . . . . . . . 2 . . . . 7 . . . . 7 . . . . 4 7 Drone Recoveries 26 | . . . . . . . . . 2 . . . . 7 . . . . 6 . . . . 4 7 Exploration | -11 -10 -10 -9 -9 -9 -8 -8 -8 -7 -7 -7 -7 -6 -6 -6 -6 -6 -5 -5 -5 -5 -5 -5 -4 -4 ------------- Run | Yrd Mat Min Mat Min Exi Min Mat Sto Fac Low Low Dat Pro Fac Low Low Zio Pro Fac Ext Cet Arc Hub Fac Arm Turns Passed 27034 | 189 985 665 2120 1060 460 640 1280 1610 1660 710 1240 130 1310 2041 909 1010 1430 920 870 1610 620 90 900 830 1745 Spaces Moved 13687 | 103 459 412 1001 600 282 368 585 631 770 420 717 75 715 855 473 588 869 610 466 750 293 60 496 382 707 Core 3 | 3 . . . . . . . . . . . . . . . . . . . . . . . . . Treads 10552 | . 411 412 1001 600 282 368 585 631 770 420 717 75 715 855 473 588 869 89 . . . . . 104 587 Legs 268 | 100 48 . . . . . . . . . . . . . . . . . . . . . . . 120 Wheels 2864 | . . . . . . . . . . . . . . . . . . 521 466 750 293 60 496 278 . Hover . | . . . . . . . . . . . . . . . . . . . . . . . . . . Flight . | . . . . . . . . . . . . . . . . . . . . . . . . . . Fastest Speed 50 | 50 120 160 160 160 160 160 160 160 163 163 163 163 163 167 167 167 162 110 130 130 130 130 130 150 120 Average Speed 159 | 117 155 160 168 163 160 161 174 202 164 163 163 163 166 168 167 167 162 131 133 137 132 130 137 150 155 Slowest Speed 330 | 120 160 160 240 240 160 240 240 246 250 163 163 163 167 247 247 247 167 170 150 150 150 130 190 210 330 Overloaded Moves . | . . . . . . . . . . . . . . . . . . . . . . . . . . Propulsion Burnouts . | . . . . . . . . . . . . . . . . . . . . . . . . . . Robots Hopped . | . . . . . . . . . . . . . . . . . . . . . . . . . . Cave-ins Triggered . | . . . . . . . . . . . . . . . . . . . . . . . . . . Exploration Rate (%) 63 | 4 90 81 79 97 70 82 42 90 30 65 84 68 82 34 66 83 85 78 16 81 56 75 49 15 56 Regions Visited 25 Branch Regions 18 Pre-discovered Areas 12 | . 2 . 3 . 1 . 1 2 . . . 1 1 . 1 . . . . . . . . . . Known Exits Taken 7 | . . . . . . . 1 1 1 1 . . . 1 . . . . . . . . 1 1 . Unknown Exits Taken 18 | 1 1 1 1 1 1 1 . . . . 1 1 1 . 1 1 1 1 1 1 1 1 . . . Scrap Searched 26 | . . 1 . 2 . . . . . 3 3 . 3 . 3 3 5 3 . . . . . . . Spaces Dug 148 | . 1 . 3 13 . 1 . . 12 . 22 . 10 23 12 2 . . 2 2 . . 6 1 38 Terrain Destroyed 1071 | . 10 . 20 13 . 22 11 10 57 19 23 . 72 105 49 34 . 84 28 62 1 . 216 61 174 Melee 2 | . . . 1 . . 1 . . . . . . . . . . . . . . . . . . . Projectile 179 | . 2 . 3 . . . 1 . 19 . 2 . . 26 8 2 . 5 14 16 1 . 25 18 37 AOE 890 | . 8 . 16 13 . 21 10 10 38 19 21 . 72 79 41 32 . 79 14 46 . . 191 43 137 Terrain Rammed . | . . . . . . . . . . . . . . . . . . . . . . . . . . Walls Destroyed . | . . . . . . . . . . . . . . . . . . . . . . . . . . Machines Disabled . | . . . . . . . . . . . . . . . . . . . . . . . . . . Actions | -11 -10 -10 -9 -9 -9 -8 -8 -8 -7 -7 -7 -7 -6 -6 -6 -6 -6 -5 -5 -5 -5 -5 -5 -4 -4 --------- Run | Yrd Mat Min Mat Min Exi Min Mat Sto Fac Low Low Dat Pro Fac Low Low Zio Pro Fac Ext Cet Arc Hub Fac Arm Total 17091 | 154 620 417 1265 648 291 394 762 895 989 442 757 83 776 1269 548 602 887 687 622 1155 501 69 615 519 1124 Wait 1344 | 24 67 1 77 15 9 5 58 162 61 8 10 9 4 188 26 1 2 6 61 173 161 4 36 28 148 Move 13662 | 102 458 411 1000 599 281 367 584 630 769 419 716 74 714 854 472 587 868 609 465 749 292 59 495 381 707 Hop . | . . . . . . . . . . . . . . . . . . . . . . . . . . Pick Up 214 | 7 15 1 21 2 1 2 11 12 10 3 2 . 8 26 9 . 4 9 8 9 6 . 6 12 30 Fast Attach 108 | 7 . . 2 . . . 9 9 4 . . . . 2 . . 3 12 5 6 9 . 11 8 21 Attach 65 | . . . 3 1 . 1 3 1 3 1 1 . 3 4 1 . . 4 3 . . . 4 6 26 Detach 11 | . . . 1 . . . 1 . . . . . 1 . . . . 1 1 . . . . . 6 Swap 377 | . 11 . 48 12 . 6 31 14 37 5 10 . 9 61 13 6 3 9 18 21 6 1 12 18 26 Drop 259 | . 8 1 23 2 . 1 24 24 12 3 3 . 5 29 7 . 7 16 11 17 16 . 7 14 29 Fire 893 | 13 55 . 80 13 . 6 35 35 87 3 15 . 32 98 20 8 . 20 46 95 11 2 44 52 123 Melee 4 | . . . 1 . . 3 . . . . . . . . . . . . . . . . . . . Ram 2 | . . . . . . . . . . . . . . . . . . . . 2 . . . . . Kick 1 | 1 . . . . . . . . . . . . . . . . . . . . . . . . . Crush 60 | . 6 3 9 4 . 3 6 8 6 . . . . 7 . . . . . . . . . . 8 Escape Stasis 13 | . . . . . . . . . . . . . . . . . . . . 13 . . . . . Rewire 78 | . . . . . . . . . . . . . . . . . . 1 4 70 . 3 . . . Trap . | . . . . . . . . . . . . . . . . . . . . . . . . . . Miscellaneous . | . . . . . . . . . . . . . . . . . . . . . . . . . . Route ------- -11/Scrapyard -10/Materials (discovered 4 exits: *Mat x3 / [*Min]) -10/Mines (discovered 2 exits: *Mat x2) -9/Materials (discovered 4 exits: *Mat x3 / [*Min]) -9/Mines (discovered 3 exits: *Mat x2 / *Exi) -9/Exiles (discovered 2 exits: [*Min x2]) -8/Mines -8/Materials (discovered 4 exits: Fac x2 / *Sto x2) -8/Storage (discovered 2 exits: *Fac / Rec) -7/Factory (discovered 2 exits: *Low x2) -7/Lower Caves -7/Lower Caves (discovered 2 exits: *Fac / *Dat) -7/Data Miner -6/Proximity Caves -6/Factory (discovered 2 exits: *Low x2) -6/Lower Caves -6/Lower Caves (discovered 2 exits: *Fac / [*Zio]) -6/Zion (discovered 2 exits: Dee / [*Pro]) -5/Proximity Caves -5/Factory (discovered 4 exits: Fac x2 / Upp / *Ext) -5/Extension (discovered 2 exits: *Fac / *Cet) -5/Cetus (discovered 2 exits: *Fac / *Arc) -5/Archives (discovered 2 exits: *Hub x2) -5/Hub_04(d) -4/Factory (discovered 3 exits: Upp x2 / *Arm) -4/Armory (discovered 2 exits: *Res x2) History --------- Turn | Location | Event 19 | -11/Scrapyard | Discovered new exit (range 16) 190 | -11/Scrapyard | Entered Materials 312 | -10/Materials | Build established: Mutant 393 | -10/Materials | Discovered new exit (range 12) 672 | -10/Materials | Discovered new exit (range 14) 752 | -10/Materials | Discovered new exit (range 5) 822 | -10/Materials | Discovered new exit (range 8) 892 | -10/Materials | Central database locked down 1175 | -10/Materials | Entered Mines 1220 | -10/Mines | Discovered new exit (range 10) 1652 | -10/Mines | Discovered new exit (range 6) 1840 | -10/Mines | Entered Materials 1840 | -9/Materials | Evolved 2 slots: Propulsion x1, Utility x1 2376 | -9/Materials | Discovered new exit (range 16) 2663 | -9/Materials | Discovered new exit (range 13) 2978 | -9/Materials | Discovered new exit (range 10) 3791 | -9/Materials | Discovered new exit (range 14) 3845 | -9/Materials | Learned location of Zion (-6) 3865 | -9/Materials | Learned location of 3 exits from Materials 3875 | -9/Materials | Learned location of Recycling (-8) 3878 | -9/Materials | Loaded intel: 21 trap records 3888 | -9/Materials | Learned Storage garrison access intel 3906 | -9/Materials | Learned Materials trap positions 3960 | -9/Materials | Entered Mines 4328 | -9/Mines | Learned location of 1 exit from Materials 4516 | -9/Mines | Build established: Scavenger-Mutant 4675 | -9/Mines | Found a hidden stash of uninstalled traps 4678 | -9/Mines | Discovered new exit (range 16) 4878 | -9/Mines | Discovered new exit (range 3) 4927 | -9/Mines | Deemed a non-threat by the Exiles lab entrance 4929 | -9/Mines | Discovered new exit (range 5) 5020 | -9/Mines | Entered Exiles 5041 | -9/Exiles | Discovered new exit (range 15) 5060 | -9/Exiles | Met 8R-AWN 5086 | -9/Exiles | Met EX-HEX 5132 | -9/Exiles | Met EX-BIN 5160 | -9/Exiles | Aligned with FarCom system 5162 | -9/Exiles | Given EX-Vault access code 5202 | -9/Exiles | Opened EX-Vault 5211 | -9/Exiles | Found Superbattery 5244 | -9/Exiles | Warned to stay clear of 0b10 Research branches 5289 | -9/Exiles | Met EX-DEC 5465 | -9/Exiles | Discovered new exit (range 10) 5480 | -9/Exiles | Left Exiles lab with Superbattery 5480 | -9/Exiles | Entered Mines 5976 | -8/Mines | Discovered new exit (range 5) 6120 | -8/Mines | Entered Materials 6120 | -8/Materials | Evolved 2 slots: Utility x1, Weapon x1 6121 | -8/Materials | Identified exit to Storage 6121 | -8/Materials | Identified exit to Factory 6122 | -8/Materials | Loaded intel: 13 trap records 6439 | -8/Materials | Build established: Scavenger-Skirmisher 6685 | -8/Materials | Central database locked down 6753 | -8/Materials | Learned Factory repair station intel 6810 | -8/Materials | Learned Storage terminal intel 6948 | -8/Materials | Learned location of 1 exit from Storage 6977 | -8/Materials | Learned Storage garrison access intel 7014 | -8/Materials | Learned 2 Storage zone layouts 7400 | -8/Materials | Entered Storage 7401 | -8/Storage | Identified exit to Recycling 7404 | -8/Storage | Loaded intel: 20 terminal locations 7405 | -8/Storage | Loaded intel: 1 garrison access location 7699 | -8/Storage | Found Prototype Processor 7720 | -8/Storage | Build established: Skirmisher 8028 | -8/Storage | Assisted by bots powering up and referring to "LRC-V3" 8311 | -8/Storage | Learned Factory trap positions 8314 | -8/Storage | Build established: Commander-Skirmisher 8352 | -8/Storage | Learned 4 Factory zone layouts 8387 | -8/Storage | Lost 4 allies 8402 | -8/Storage | Learned 8 Factory zone layouts 8415 | -8/Storage | Learned Factory fabricator intel 8427 | -8/Storage | Learned 4 Lower Caves zone layouts 8449 | -8/Storage | Learned 4 Lower Caves zone layouts 8483 | -8/Storage | Learned Factory terminal intel 8535 | -8/Storage | Lost 3 allies 8643 | -8/Storage | Met 01-MTF 8804 | -8/Storage | Build established: Skirmisher 9010 | -8/Storage | Entered Factory 9010 | -7/Factory | Accompanied by 1 ally (01-MTF) 9010 | -7/Factory | Evolved 2 slots: Propulsion x1, Utility x1 9011 | -7/Factory | Identified exit to Lower Caves 9013 | -7/Factory | 01-MTF left 9013 | -7/Factory | Loaded intel: 88 trap records 9014 | -7/Factory | Loaded intel: 26 terminal locations 9015 | -7/Factory | Loaded intel: 6 fabricator locations 9016 | -7/Factory | Loaded intel: 6 repair station locations 9492 | -7/Factory | Build established: Tank 9530 | -7/Factory | Garrison activated, responded to threat 10610 | -7/Factory | First assault squad dispatched 10670 | -7/Factory | Entered Lower Caves 10671 | -7/Lower Caves | Identified exit to Lower Caves 10948 | -7/Lower Caves | Learned Factory terminal intel 10974 | -7/Lower Caves | Identified Exp. Targeting Computer 11380 | -7/Lower Caves | Entered another Lower Caves area 11428 | -7/Lower Caves | Discovered new exit (range 12) 11459 | -7/Lower Caves | Spotted B-75 Beast 11566 | -7/Lower Caves | Encountered a Warlord checkpoint 12205 | -7/Lower Caves | Learned Factory security intel 12346 | -7/Lower Caves | Discovered new exit (range 16) 12620 | -7/Lower Caves | Entered Data Miner 12620 | -7/Data Miner | Discovered new exit (range 6) 12651 | -7/Data Miner | Met Data Miner 12681 | -7/Data Miner | Learned location of Section 7 (-3) 12681 | -7/Data Miner | Acquired the access code to Warlord's prototype stash 12702 | -7/Data Miner | Received God Mode back door access code from Data Miner 12750 | -7/Data Miner | Entered Proximity Caves 12819 | -6/Proximity Caves | Spotted B-75 Beast 12852 | -6/Proximity Caves | Destroyed B-75 Beast 14038 | -6/Proximity Caves | Discovered new exit (range 9) 14060 | -6/Proximity Caves | Entered Factory 14060 | -6/Factory | Evolved 2 slots: Utility x2 14062 | -6/Factory | Loaded intel: 25 terminal locations 14098 | -6/Factory | Discovered new exit (range 21) 14323 | -6/Factory | Repaired Arm. Treads 14456 | -6/Factory | Garrison activated, responded to threat 14693 | -6/Factory | Identified exit to Lower Caves 14951 | -6/Factory | Repaired Broken Imp. Treads 15460 | -6/Factory | First assault squad dispatched 15476 | -6/Factory | Incoming assault squad redirected 15483 | -6/Factory | Build established: Scavenger-Tank 15833 | -6/Factory | Incoming assault squad redirected 16101 | -6/Factory | Entered Lower Caves 16102 | -6/Lower Caves | Encountered a Warlord checkpoint 16122 | -6/Lower Caves | Attracted the attention of an 0b10 checkpoint 16440 | -6/Lower Caves | Build established: Scavenger-Skirmisher 16912 | -6/Lower Caves | Found DCF Scrap (10 items) 16945 | -6/Lower Caves | Discovered new exit (range 8) 17010 | -6/Lower Caves | Entered another Lower Caves area 17021 | -6/Lower Caves | Discovered new exit (range 12) 17872 | -6/Lower Caves | Discovered new exit (range 12) 17887 | -6/Lower Caves | Attracted the attention of an 0b10 checkpoint 18020 | -6/Lower Caves | Entered Zion 18104 | -6/Zion | Given the Hacking Drone Bay 18170 | -6/Zion | Discovered new exit (range 13) 18278 | -6/Zion | Identified exit to Deep Caves 18438 | -6/Zion | Given A8's code to call for help 18681 | -6/Zion | Received a hallucinogenic algorithm 18768 | -6/Zion | Found Prototype Launcher 18768 | -6/Zion | Identified Rocket Array 19064 | -6/Zion | Learned Factory emergency access door positions 19100 | -6/Zion | Rebuked by Imprinter 19355 | -6/Zion | Found Prototype Device 19356 | -6/Zion | Identified Hacking Drone Bay 19450 | -6/Zion | Entered Proximity Caves 19552 | -5/Proximity Caves | Unaware initiated a cargo recovery operation 19575 | -5/Proximity Caves | Encountered a Derelict guarding a broken Freighter 19616 | -5/Proximity Caves | Found Prototype Launcher 19616 | -5/Proximity Caves | Identified Ragnarok Missile Launcher 19632 | -5/Proximity Caves | Found Prototype Processor 19632 | -5/Proximity Caves | Identified Exp. Target Analyzer 19638 | -5/Proximity Caves | Found Prototype Device 19638 | -5/Proximity Caves | Identified Beam Splitter 20168 | -5/Proximity Caves | Build established: Gunner 20264 | -5/Proximity Caves | Discovered new exit (range 6) 20275 | -5/Proximity Caves | Attracted the attention of an 0b10 checkpoint 20297 | -5/Proximity Caves | Learned location of 2 exits from Factory 20334 | -5/Proximity Caves | Spotted B-75 Beast 20370 | -5/Proximity Caves | Entered Factory 20370 | -5/Factory | Evolved 2 slots: Power x1, Utility x1 20371 | -5/Factory | Identified exit to Upper Caves 20372 | -5/Factory | Identified exit to Factory 20796 | -5/Factory | Discovered new exit (range 16) 20938 | -5/Factory | Build established: Derelict-Tank 21240 | -5/Factory | Entered Extension 21275 | -5/Extension | Rescued a captive Derelict 21398 | -5/Extension | Rescued a captive Derelict 21399 | -5/Extension | Rescued a captive Derelict 21519 | -5/Extension | Lost 3 allies 21599 | -5/Extension | Rescued a captive Derelict 21609 | -5/Extension | Rescued a captive Derelict 21617 | -5/Extension | Rescued a captive Derelict 21674 | -5/Extension | Rescued a captive Derelict 21723 | -5/Extension | Rescued A7 21757 | -5/Extension | Lost 6 allies 21884 | -5/Extension | Build established: Scavenger-Tank 22090 | -5/Extension | Disrupted transfer network 22103 | -5/Extension | Spotted B-75 Beast 22108 | -5/Extension | Allies destroyed B-75 Beast 22141 | -5/Extension | Spotted B-75 Beast 22153 | -5/Extension | Destroyed B-75 Beast 22162 | -5/Extension | Incoming investigation squad redirected 22198 | -5/Extension | Destroyed 12 combat bots 22401 | -5/Extension | Discovered exit to Factory (range 16) 22401 | -5/Extension | Discovered new exit (range 16) 22441 | -5/Extension | Rescued a captive Derelict 22458 | -5/Extension | Rescued a captive Derelict 22470 | -5/Extension | Rescued a captive Derelict 22472 | -5/Extension | Rescued a captive Derelict 22553 | -5/Extension | Rescued a captive Derelict 22554 | -5/Extension | Rescued a captive Derelict 22571 | -5/Extension | Rescued a captive Derelict 22850 | -5/Extension | Entered Cetus 22850 | -5/Cetus | Accompanied by 10 allies (A7) 22855 | -5/Cetus | Acquired a Cetus Manufacturing Module code from A7 22875 | -5/Cetus | Spotted Cetus Guard 22875 | -5/Cetus | Spotted Cetus Guard 22879 | -5/Cetus | Spotted Cetus Guard 22879 | -5/Cetus | Spotted Cetus Guard 22898 | -5/Cetus | Destroyed Cetus Guard 22901 | -5/Cetus | Destroyed Cetus Guard 22908 | -5/Cetus | Destroyed Cetus Guard 22926 | -5/Cetus | Lost 8 allies 23016 | -5/Cetus | Started Cetus Manufacturing Module 23041 | -5/Cetus | Manufactured an Enhanced Grunt 23066 | -5/Cetus | Manufactured an Enhanced Grunt 23091 | -5/Cetus | Manufactured an Enhanced Grunt 23116 | -5/Cetus | Manufactured an Enhanced Grunt 23141 | -5/Cetus | Manufactured an Enhanced Grunt 23163 | -5/Cetus | Discovered new exit (range 15) 23328 | -5/Cetus | Spotted Cetus Guard 23328 | -5/Cetus | Spotted Cetus Guard 23329 | -5/Cetus | Spotted Cetus Guard 23329 | -5/Cetus | Destroyed Cetus Guard 23333 | -5/Cetus | Destroyed Cetus Guard 23334 | -5/Cetus | Allies destroyed Cetus Guard 23344 | -5/Cetus | Allies destroyed Cetus Guard 23352 | -5/Cetus | Extracted ID and sensor layout for unrecognized location from A7's data core 23361 | -5/Cetus | Discovered exit to Factory (range 16) 23368 | -5/Cetus | Met Revision 17 23470 | -5/Cetus | Entered Archives 23470 | -5/Archives | Accompanied by 6 allies 23485 | -5/Archives | Met Zhirov 23491 | -5/Archives | Reinforcements dispatched to Archives 23501 | -5/Archives | Unable to access archive contents 23515 | -5/Archives | Discovered new exit (range 16) 23536 | -5/Archives | Reinforcements dispatched to Archives 23538 | -5/Archives | Zhirov warped through subspace 23540 | -5/Archives | Discovered new exit (range 13) 23556 | -5/Archives | Zhirov detonated Archives 23560 | -5/Archives | Entered Hub_04(d) 23587 | -5/Hub_04(d) | Lost 6 allies 24029 | -5/Hub_04(d) | Network Hub disabled 24086 | -5/Hub_04(d) | Spotted Lightning 24113 | -5/Hub_04(d) | Destroyed Lightning 24115 | -5/Hub_04(d) | System corruption reached 10% 24117 | -5/Hub_04(d) | Destroyed Lightning 24131 | -5/Hub_04(d) | Destroyed Lightning 24147 | -5/Hub_04(d) | Lost 3 parts (1u2w) 24246 | -5/Hub_04(d) | Found Scatter Rocket Array 24301 | -5/Hub_04(d) | Discovered exit to Factory (range 7) 24460 | -5/Hub_04(d) | Entered Factory 24460 | -4/Factory | Evolved 2 slots: Utility x2 24584 | -4/Factory | Incoming investigation squad redirected 24772 | -4/Factory | Incoming investigation squad redirected 24960 | -4/Factory | Identified exit to Upper Caves 24960 | -4/Factory | Identified exit to Armory 25112 | -4/Factory | Lost 4 parts (3u1w) 25122 | -4/Factory | Destroyed 17 combat bots 25210 | -4/Factory | First assault squad dispatched 25238 | -4/Factory | Incoming assault squad redirected 25290 | -4/Factory | Entered Armory 25356 | -4/Armory | Destroyed 10 combat bots 25580 | -4/Armory | First assault squad dispatched 25603 | -4/Armory | Incoming assault squad redirected 25607 | -4/Armory | Destroyed 11 combat bots 25607 | -4/Armory | Lost 4 parts (2p2u) 25679 | -4/Armory | Lost 3 parts (2p1u) 25813 | -4/Armory | Lost 6 parts (2n2u2w) 26082 | -4/Armory | Core integrity fell below 50% 26149 | -4/Armory | Lost 4 parts (2p2u) 26173 | -4/Armory | Discovered new exit (range 5) 26607 | -4/Armory | Lost 3 parts (1u2w) 26739 | -4/Armory | Spotted B-86 Titan 26757 | -4/Armory | Destroyed B-86 Titan 26829 | -4/Armory | Identified exit to Research 26952 | -4/Armory | Lost 10 parts (1p3n4u2w) 26976 | -4/Armory | Core integrity fell below 20% 27001 | -4/Armory | System corruption reached 10% 27035 | -4/Armory | Destroyed by G-67 Veteran with Plasma Rifle Last Messages --------------- 26994_ Adv. Heavy Siege Treads destroyed. 26995_ The unstable cave ceiling collapses. 26995_ ALERT: Suspicious intruders detected, dispatching Specialist reinforcements to area. 26995_ Acquired 23 matter. 26997_ P-70 Sage destroyed. 26999_ P-70 Sage knocked back. 27001_ Recycling Unit disabled. 27001_ Antimissile System tumbles out of recycling unit. 27006_ System corrupted: Adv. Heavy Siege Treads rejected. 27023_ Acquired 44 matter. 27026_ P-70 Sage knocked back. 27026_ Lgt. Antimatter Cannon destroyed. 27028_ Acquired 9 matter. 27029_ F/LQJG0QOR|A9IW7HRBV 27029_ The unstable cave ceiling collapses. 27032_ Adv. Transmission Jammer destroyed. 27032_ P-70 Sage knocked back. 27034_ Destroyed Tesla Rifle. 27034_ P-70 Sage knocked back. Map ----- +----------------------------------------------------+ | ??????????????????????????????????????????? | | ??????????????????????????????????????????? | | ??????????????????????????????????????????? | | ?????????????????????